fUSD/lending_fUSD_20250103
["ID","MTS","AMOUNT","RATE_DAILY","PERIOD"]
[347561952,1735919443051,-500.0,9.867e-05,2]
[347561953,1735919443060,-500.0,9.867e-05,2]
[347561955,1735919443072,-500.0,9.867e-05,2]
[347561956,1735919443082,-500.0,9.867e-05,2]
[347561958,1735919443093,-500.0,9.867e-05,2]
[347561960,1735919443103,-500.0,9.867e-05,2]
[347561961,1735919443112,-500.0,9.867e-05,2]
[347561963,1735919443122,-366.4851182,9.867e-05,2]
[347561964,1735919443132,-500.0,9.867e-05,2]
[347561966,1735919443141,-631.97854926,9.867e-05,2]
[347561968,1735919443151,-500.0,9.867e-05,2]
[347561969,1735919443160,-500.0,9.867e-05,2]
[347561971,1735919443169,-634.74,9.867e-05,2]
[347561973,1735919443178,-500.0,9.867e-05,2]
[347561974,1735919443187,-500.0,9.867e-05,2]
[347561975,1735919443197,-500.0,9.867e-05,2]
[347561976,1735919443207,-268.83698558,9.867e-05,2]
[347561977,1735919443216,-500.0,9.867e-05,2]
[347561978,1735919443226,-500.0,9.867e-05,2]
[347561979,1735919443235,-500.0,9.867e-05,2]
[347561980,1735919443244,-500.0,9.867e-05,2]
[347561981,1735919443254,-500.0,9.867e-05,2]
[347561982,1735919443263,-744.75,9.867e-05,2]
[347561983,1735919443272,-500.0,9.867e-05,2]
[347561984,1735919443282,-500.0,9.867e-05,2]
[347561985,1735919443291,-500.0,9.867e-05,2]
[347561986,1735919443305,-500.0,9.867e-05,2]
[347561987,1735919443314,-500.0,9.867e-05,2]
[347561988,1735919443326,-604.13,9.867e-05,2]
[347561989,1735919443335,-500.0,9.867e-05,2]
[347561990,1735919443346,-500.0,9.867e-05,2]
[347561991,1735919443356,-506.64,9.867e-05,2]
[347561992,1735919443365,-500.0,9.867e-05,2]
[347561993,1735919443375,-500.0,9.867e-05,2]
[347561994,1735919443385,-500.0,9.867e-05,2]
[347561995,1735919443395,-500.0,9.867e-05,2]
[347561996,1735919443404,-500.0,9.867e-05,2]
[347561997,1735919443413,-500.0,9.867e-05,2]
[347561998,1735919443423,-500.0,9.867e-05,2]
[347561999,1735919443433,-500.0,9.867e-05,2]
[347562000,1735919443442,-500.0,9.867e-05,2]
[347562001,1735919443451,-500.0,9.867e-05,2]
[347562002,1735919443461,-500.0,9.867e-05,2]
[347562003,1735919443470,-811.8,9.867e-05,2]
[347562004,1735919443479,-500.0,9.867e-05,2]
[347562006,1735919443488,-500.0,9.867e-05,2]
[347562007,1735919443497,-500.0,9.867e-05,2]
[347562008,1735919443507,-256.36027053,9.867e-05,2]
[347562009,1735919443516,-734.49,9.867e-05,2]
[347562010,1735919443525,-500.0,9.867e-05,2]
[347562011,1735919443534,-500.0,9.867e-05,2]
[347562012,1735919443543,-500.0,9.867e-05,2]
[347562013,1735919443554,-500.0,9.867e-05,2]
[347562014,1735919443564,-637.97284288,9.867e-05,2]
[347562015,1735919443574,-809.26,9.867e-05,2]
[347562016,1735919443584,-1045.95,9.867e-05,2]
[347562017,1735919443593,-500.0,9.867e-05,2]
[347562018,1735919443603,-500.0,9.867e-05,2]
[347562019,1735919443612,-153.59626886,9.867e-05,2]
[347562020,1735919443621,-500.0,9.867e-05,2]
[347562022,1735919443631,-500.0,9.867e-05,2]
[347562024,1735919443641,-500.0,9.867e-05,2]
[347562026,1735919443650,-1478.74,9.867e-05,2]
[347562028,1735919443659,-500.0,9.867e-05,2]
[347562030,1735919443668,-180.82842612,9.867e-05,2]
[347562032,1735919443678,-500.0,9.867e-05,2]
[347562034,1735919443689,-508.13946469,9.867e-05,2]
[347562036,1735919443698,-626.36,9.867e-05,2]
[347562038,1735919443707,-951.82,9.867e-05,2]
[347562040,1735919443716,-500.0,9.867e-05,2]
[347562042,1735919443725,-500.0,9.867e-05,2]
[347562044,1735919443734,-500.0,9.867e-05,2]
[347562046,1735919443744,-947.32,9.867e-05,2]
[347562048,1735919443753,-929.15,9.867e-05,2]
[347562050,1735919443762,-500.0,9.867e-05,2]
[347562052,1735919443771,-521.98,9.867e-05,2]
[347562054,1735919443780,-500.0,9.867e-05,2]
[347562056,1735919443788,-500.0,9.867e-05,2]
[347562058,1735919443797,-512.37112356,9.867e-05,2]
[347562060,1735919443807,-500.0,9.867e-05,2]
[347562062,1735919443818,-500.0,9.867e-05,2]
[347562064,1735919443828,-500.0,9.867e-05,2]
[347562065,1735919443838,-500.0,9.867e-05,2]
[347562068,1735919443848,-3875.94,9.867e-05,2]
[347562069,1735919443858,-571.01826654,9.867e-05,2]
[347562071,1735919443867,-866.91,9.867e-05,2]
[347562073,1735919443876,-500.0,9.867e-05,2]
[347562075,1735919443886,-622.6,9.867e-05,2]
[347562077,1735919443895,-1185.4,9.867e-05,2]
[347562079,1735919443904,-1073.49,9.867e-05,2]
[347562081,1735919443913,-500.0,9.867e-05,2]
[347562083,1735919443923,-935.42,9.867e-05,2]
[347562085,1735919443932,-1753.28,9.867e-05,2]
[347562087,1735919443942,-500.0,9.867e-05,2]
[347562089,1735919443952,-545.14711089,9.867e-05,2]
[347562091,1735919443962,-500.0,9.867e-05,2]
[347562093,1735919443971,-1140.28,9.867e-05,2]
[347562095,1735919443981,-500.0,9.867e-05,2]
[347562097,1735919443991,-500.0,9.867e-05,2]
[347562099,1735919444000,-985.48,9.867e-05,2]
[347562101,1735919444010,-2049.49,9.867e-05,2]
[347562103,1735919444019,-500.0,9.868e-05,2]
[347562105,1735919444028,-1331.87,9.868e-05,2]
[347562107,1735919444037,-500.0,9.868e-05,2]
[347562109,1735919444046,-2635.42,9.868e-05,2]
[347562111,1735919444056,-1927.72,9.868e-05,2]
[347562113,1735919444065,-500.0,9.868e-05,2]
[347562115,1735919444076,-1038.27,9.868e-05,2]
[347562117,1735919444086,-938.89,9.868e-05,2]
[347562119,1735919444095,-223384.38585848,9.887e-05,2]
[347562121,1735919444104,-666.0,9.887e-05,2]
[347562123,1735919444113,-3502245.6441093,9.888e-05,2]
[347562162,1735919444476,-1196.5,9.888e-05,2]
[347562164,1735919444488,-55359.59378277,9.888e-05,2]
[347562167,1735919444499,-974.99304204,9.888e-05,2]
[347562169,1735919444511,-12443.55279638,9.888e-05,2]
[347562171,1735919444522,-6899.46636559,9.888e-05,2]
[347562297,1735919445721,-21611.29684382,9.295e-05,2]
[347562299,1735919445731,-500.0,9.32e-05,2]
[347562301,1735919445741,-500.0,9.594e-05,2]
[347562305,1735919445751,-173.633,9.794e-05,2]
[347562307,1735919445760,-500.0,9.863e-05,2]
[347562309,1735919445770,-500.0,9.868e-05,2]
[347562311,1735919445780,-68008.74551953,9.888e-05,2]
[347562313,1735919445789,-1000.0,9.9e-05,2]
[347562315,1735919445799,-14100.0,9.9e-05,3]
[347562317,1735919445809,-5172.43607015,9.9e-05,2]
[347562319,1735919445819,-220.13101678,9.9e-05,2]
[347562321,1735919445828,-173.78238502,9.9e-05,2]
[347562323,1735919445838,-502.6667182,9.915e-05,2]
[347562325,1735919445848,-187.23731368,9.966e-05,2]
[347562329,1735919445876,-150.449,9.794e-05,2]
[347562331,1735919445890,-407.5292299,9.966e-05,2]
[347562333,1735919445902,-2196.92500435,9.966e-05,2]
[347562335,1735919445913,-11210.31583147,9.966e-05,2]
[347562337,1735919445925,-2794.53274785,9.966e-05,2]
[347562340,1735919445934,-831.20755215,9.97e-05,2]
[347562342,1735919445946,-1102.30244785,9.97e-05,2]
[347562344,1735919445955,-769.37,9.97e-05,2]
[347562346,1735919445965,-573.75,9.97e-05,2]
[347562348,1735919445975,-500.0,9.97e-05,2]
[347562350,1735919445984,-771.96,9.97e-05,2]
[347562352,1735919445993,-1538.1,9.97e-05,2]
[347562354,1735919446003,-2506.14,9.97e-05,2]
[347562356,1735919446013,-2816.21,9.97e-05,2]
[347562358,1735919446023,-3188.74,9.97e-05,2]
[347562360,1735919446032,-500.0,9.97e-05,2]
[347562362,1735919446042,-539.78,9.97e-05,2]
[347562364,1735919446052,-828.09,9.97e-05,2]
[347562366,1735919446062,-2765.55755215,9.983e-05,2]
[347562368,1735919446076,-2877.82850652,9.983e-05,2]
[347562371,1735919446089,-1461.43893628,9.983e-05,2]
[347562373,1735919446100,-1363.30185607,9.983e-05,2]
[347562375,1735919446110,-293.52651157,9.983e-05,2]
[347562376,1735919446120,-1019.66461617,9.983e-05,2]
[347562377,1735919446129,-1019.66461617,9.983e-05,2]
[347562378,1735919446138,-21969.14670687,9.984e-05,2]
[347562379,1735919446147,-734.63779998,9.984e-05,2]
[347562380,1735919446157,-734.63779998,9.988e-05,2]
[347562381,1735919446166,-1019.66461617,9.99e-05,2]
[347562382,1735919446175,-12602.00583387,9.991e-05,2]
[347562383,1735919446187,-1227.21394694,9.991e-05,2]
[347562384,1735919446198,-922.61,9.991e-05,2]
[347562385,1735919446210,-7217.31692606,9.991e-05,2]
[347562386,1735919446219,-293.52651157,9.992e-05,2]
[347562387,1735919446228,-1019.66461617,9.994e-05,2]
[347562389,1735919446238,-293.52651157,9.996e-05,2]
[347562390,1735919446247,-1019.66461617,9.997e-05,2]
[347562392,1735919446257,-21969.14670687,9.997e-05,2]
[347562394,1735919446267,-293.52651157,9.997e-05,2]
[347562396,1735919446276,-293.52651157,9.999e-05,2]
[347562398,1735919446286,-12568.19000356,9.999e-05,2]
[347562400,1735919446298,-666.0,9.999e-05,2]
[347562402,1735919446310,-34982.137288,0.0001,2]
[347562404,1735919446320,-200.0,0.0001,2]
[347562406,1735919446330,-1000.0,0.0001,2]
[347562408,1735919446341,-639.14982487,0.0001,2]
[347562410,1735919446352,-3336.2797503,0.0001,2]
[347562412,1735919446361,-1000.0,0.0001,2]
[347562414,1735919446371,-7355.3683158,0.0001,3]
[347562416,1735919446383,-9758.819989,0.0001,3]
[347562421,1735919446422,-485.8116952,0.0001,3]
[347562423,1735919446431,-3000.0,0.0001,2]
[347562425,1735919446442,-16796.54012728,0.0001,2]
[347562427,1735919446452,-8962.39298593,0.0001,2]
[347562430,1735919446463,-739.73230278,0.0001,2]
[347562432,1735919446475,-1067.9999996,0.0001,2]
[347562463,1735919446764,-294.766356,9.319e-05,2]
[347562465,1735919446776,-205.233644,9.319e-05,2]
[347562467,1735919446785,-500.0,9.593e-05,2]
[347562469,1735919446795,-337.13072597,9.867e-05,2]
[347562471,1735919446807,-162.86927403,9.867e-05,2]
[347562473,1735919446818,-596.64251079,0.0001,2]
[347562476,1735919446831,-2494.87357735,0.0001,2]
[347562478,1735919446843,-2934.8987508,0.0001,2]
[347562480,1735919446852,-13566.95816674,0.0001,2]
[347562486,1735919446898,-3229.58196051,0.0001,2]
[347562488,1735919446907,-11956.65790449,0.0001,2]
[347562490,1735919446919,-1862.54424,0.0001,2]
[347562493,1735919446942,-2977.33798276,0.0001,2]
[347562495,1735919446953,-16796.54012725,0.0001,2]
[347562497,1735919446963,-13784.29308287,0.0001,2]
[347562499,1735919446974,-3012.24704438,0.0001,2]
[347562501,1735919446983,-500.0,0.0001007,2]
[347562503,1735919446993,-2925.8,0.0001007,2]
[347562505,1735919447003,-500.0,0.0001007,2]
[347562507,1735919447012,-500.0,0.0001007,2]
[347562509,1735919447021,-463.62952835,0.0001007,2]
[347562511,1735919447033,-250.785,0.0001007,2]
[347562514,1735919447044,-263.02547165,0.0001007,2]
[347562516,1735919447054,-72.14923279,0.00010071,2]
[347562518,1735919447065,-342.17351714,0.00010071,2]
[347562520,1735919447082,-85.67725007,0.00010071,2]
[347562522,1735919447091,-666.7,0.00010071,2]
[347562524,1735919447101,-973.96,0.00010071,2]
[347562526,1735919447111,-541.31,0.00010071,2]
[347562528,1735919447122,-1228.89,0.00010071,2]
[347562530,1735919447132,-58.46274993,0.00010071,2]
[347562532,1735919447145,-500.00608853,0.00010071,2]
[347562535,1735919447160,-441.53116154,0.00010071,2]
[347562537,1735919447170,-542.1,0.00010071,2]
[347562539,1735919447180,-500.0,0.00010071,2]
[347562541,1735919447190,-666.36807129,0.00010071,2]
[347562543,1735919447201,-1268.23192871,0.00010071,2]
[347562545,1735919447211,-882.89,0.00010071,2]
[347562547,1735919447220,-1532.55,0.00010071,2]
[347562549,1735919447229,-444.96794012,0.00010071,2]
[347562551,1735919447241,-1192.50205988,0.00010071,2]
[347562553,1735919447252,-2740.86257956,0.00010083,2]
[347562555,1735919447263,-2288.91045091,0.00010083,2]
[347562591,1735919447598,-438.37999999,0.00010083,2]
[347562593,1735919447610,-563.992002,0.00010083,2]
[347562595,1735919447623,-346.08150003,0.00010083,2]
[347562598,1735919447634,-644.82818535,0.00010083,2]
[347562600,1735919447645,-2976.94528216,0.00010083,2]
[347562602,1735919447655,-6836.19369962,0.00010093,2]
[347562604,1735919447667,-1847.35466494,0.00010093,2]
[347562606,1735919447679,-5347.98750044,0.00010093,2]
[347562609,1735919447691,-1086.00001,0.00010093,2]
[347562611,1735919447703,-1679.00425225,0.00010093,2]
[347562613,1735919447713,-168.98,0.00010109,2]
[347562615,1735919447722,-216.74,0.00010137,2]
[347562617,1735919447732,-758.27,0.00010137,2]
[347562619,1735919447742,-396.29,0.00010137,2]
[347562621,1735919447752,-575.09114175,0.00010139,2]
[347562623,1735919447762,-1031.91,0.00010139,2]
[347562625,1735919447772,-1359.78,0.00010139,2]
[347562627,1735919447781,-719.38714184,0.00010139,2]
[347562631,1735919447808,-7.57285816,0.00010139,2]
[347562633,1735919447817,-1334.93,0.00010139,2]
[347562635,1735919447828,-500.0,0.00010139,2]
[347562637,1735919447838,-2357.01,0.00010139,2]
[347562639,1735919447848,-216.81,0.00010139,2]
[347562641,1735919447858,-500.0,0.00010139,2]
[347562643,1735919447868,-500.0,0.00010139,2]
[347562645,1735919447877,-500.0,0.00010139,2]
[347562647,1735919447887,-500.0,0.00010139,2]
[347562649,1735919447897,-1740.81,0.00010139,2]
[347562651,1735919447906,-500.0,0.0001014,2]
[347562653,1735919447916,-500.0,0.0001014,2]
[347562655,1735919447925,-500.0,0.0001014,2]
[347562657,1735919447935,-500.0,0.0001014,2]
[347562659,1735919447946,-500.0,0.0001014,2]
[347562661,1735919447956,-485.78826267,0.0001014,2]
[347562663,1735919447966,-500.0,0.0001014,2]
[347562665,1735919447976,-500.0,0.0001014,2]
[347562667,1735919447986,-500.0,0.0001014,2]
[347562669,1735919447996,-500.0,0.0001014,2]
[347562671,1735919448006,-500.0,0.0001014,2]
[347562673,1735919448016,-500.0,0.0001014,2]
[347562675,1735919448026,-500.0,0.0001014,2]
[347562677,1735919448036,-500.0,0.0001014,2]
[347562679,1735919448047,-500.0,0.0001014,2]
[347562681,1735919448058,-500.0,0.0001014,2]
[347562684,1735919448069,-500.0,0.0001014,2]
[347562686,1735919448083,-500.0,0.0001014,2]
[347562688,1735919448094,-500.0,0.0001014,2]
[347562690,1735919448104,-500.0,0.0001014,2]
[347562692,1735919448113,-500.0,0.0001014,2]
[347562694,1735919448123,-500.0,0.0001014,2]
[347562696,1735919448133,-500.0,0.0001014,2]
[347562698,1735919448143,-539.86,0.0001014,2]
[347562700,1735919448153,-517.36,0.0001014,2]
[347562702,1735919448164,-500.0,0.0001014,2]
[347562704,1735919448174,-500.0,0.0001014,2]
[347562706,1735919448185,-500.0,0.0001014,2]
[347562708,1735919448195,-500.0,0.0001014,2]
[347562710,1735919448205,-537.71049976,0.0001014,2]
[347562712,1735919448215,-500.0,0.0001014,2]
[347562714,1735919448226,-500.0,0.0001014,2]
[347562716,1735919448236,-500.0,0.0001014,2]
[347562718,1735919448245,-500.0,0.0001014,2]
[347562720,1735919448255,-998.79,0.0001014,2]
[347562722,1735919448265,-496.69735991,0.0001014,2]
[347562724,1735919448275,-500.0,0.0001014,2]
[347562726,1735919448287,-500.0,0.0001014,2]
[347562728,1735919448297,-500.0,0.0001014,2]
[347562730,1735919448310,-500.0,0.0001014,2]
[347562732,1735919448320,-500.0,0.0001014,2]
[347562734,1735919448330,-500.0,0.0001014,2]
[347562736,1735919448342,-500.0,0.0001014,2]
[347562738,1735919448352,-500.0,0.0001014,2]
[347562740,1735919448361,-500.0,0.0001014,2]
[347562742,1735919448371,-500.0,0.0001014,2]
[347562744,1735919448382,-500.0,0.0001014,2]
[347562746,1735919448392,-500.0,0.0001014,2]
[347562748,1735919448402,-500.0,0.0001014,2]
[347562750,1735919448412,-500.0,0.0001014,2]
[347562752,1735919448421,-1103.91,0.0001014,2]
[347562754,1735919448431,-567.84,0.0001014,2]
[347562756,1735919448441,-618.93,0.0001014,2]
[347562758,1735919448451,-844.94,0.0001014,2]
[347562760,1735919448461,-500.0,0.0001014,2]
[347562762,1735919448471,-500.0,0.0001014,2]
[347562764,1735919448481,-1117.93,0.0001014,2]
[347562766,1735919448491,-3213.16,0.0001014,2]
[347562768,1735919448501,-500.0,0.0001014,2]
[347562770,1735919448512,-500.0,0.0001014,2]
[347562772,1735919448522,-500.0,0.0001014,2]
[347562774,1735919448534,-548.22930449,0.0001014,2]
[347562776,1735919448544,-500.0,0.0001014,2]
[347562778,1735919448554,-500.0,0.0001014,2]
[347562780,1735919448564,-839.98,0.0001014,2]
[347562782,1735919448577,-500.0,0.0001014,2]
[347562784,1735919448587,-500.0,0.0001014,2]
[347562786,1735919448597,-500.0,0.0001014,2]
[347562788,1735919448607,-500.0,0.0001014,2]
[347562790,1735919448617,-500.0,0.0001014,2]
[347562792,1735919448627,-500.0,0.0001014,2]
[347562794,1735919448637,-682.48,0.0001014,2]
[347562796,1735919448647,-500.0,0.0001014,2]
[347562798,1735919448657,-500.0,0.0001014,2]
[347562800,1735919448667,-500.0,0.0001014,2]
[347562802,1735919448677,-500.0,0.0001014,2]
[347562804,1735919448687,-500.0,0.0001014,2]
[347562806,1735919448697,-1341.85,0.0001014,2]
[347562808,1735919448706,-500.0,0.0001014,2]
[347562810,1735919448715,-1839.57,0.0001014,2]
[347562812,1735919448727,-558.15,0.0001014,2]
[347562814,1735919448736,-500.0,0.0001014,2]
[347562816,1735919448747,-361.6700522,0.0001014,2]
[347562818,1735919448758,-500.0,0.0001014,2]
[347562820,1735919448767,-712.41,0.0001014,2]
[347562822,1735919448778,-1970.07,0.0001014,2]
[347562824,1735919448788,-500.0,0.0001014,2]
[347562826,1735919448798,-500.0,0.0001014,2]
[347562828,1735919448809,-793.59,0.0001014,2]
[347562830,1735919448819,-1135.87,0.0001014,2]
[347562832,1735919448832,-500.0,0.0001014,2]
[347562834,1735919448843,-916.65,0.0001014,2]
[347562836,1735919448853,-500.0,0.0001014,2]
[347562838,1735919448863,-500.0,0.0001014,2]
[347562839,1735919448873,-500.0,0.0001014,2]
[347562840,1735919448884,-500.0,0.0001014,2]
[347562841,1735919448894,-500.0,0.0001014,2]
[347562842,1735919448906,-500.0,0.0001014,2]
[347562843,1735919448917,-500.0,0.0001014,2]
[347562844,1735919448927,-2628.99,0.0001014,2]
[347562845,1735919448939,-500.0,0.0001014,2]
[347562846,1735919448950,-2070.37,0.0001014,2]
[347562847,1735919448960,-500.0,0.0001014,2]
[347562848,1735919448970,-741.61,0.0001014,2]
[347562850,1735919448980,-500.0,0.0001014,2]
[347562851,1735919448990,-2265.52,0.0001014,2]
[347562853,1735919449001,-597.93,0.0001014,2]
[347562855,1735919449012,-500.0,0.0001014,2]
[347562857,1735919449022,-500.0,0.0001014,2]
[347562859,1735919449032,-500.0,0.00010141,2]
[347562861,1735919449042,-500.0,0.00010141,2]
[347562863,1735919449053,-500.0,0.00010141,2]
[347562865,1735919449072,-500.0,0.00010141,2]
[347562867,1735919449092,-500.0,0.00010141,2]
[347562869,1735919449102,-2098.39,0.00010141,2]
[347562871,1735919449112,-500.0,0.00010141,2]
[347562873,1735919449123,-500.0,0.00010141,2]
[347562875,1735919449133,-1320.51,0.00010141,2]
[347562877,1735919449143,-500.0,0.00010141,2]
[347562879,1735919449154,-500.0,0.00010141,2]
[347562881,1735919449164,-500.0,0.00010141,2]
[347562883,1735919449174,-4218.15,0.00010141,2]
[347562885,1735919449184,-500.0,0.00010141,2]
[347562887,1735919449194,-500.0,0.00010141,2]
[347562889,1735919449207,-500.0,0.00010141,2]
[347562892,1735919449220,-500.0,0.00010141,2]
[347562894,1735919449231,-4190.93,0.00010141,2]
[347562895,1735919449241,-500.0,0.00010141,2]
[347562898,1735919449252,-500.0,0.00010141,2]
[347562899,1735919449261,-500.0,0.00010141,2]
[347562901,1735919449272,-1247.97,0.00010141,2]
[347562903,1735919449281,-500.0,0.00010141,2]
[347562905,1735919449292,-500.0,0.00010141,2]
[347562907,1735919449303,-500.0,0.00010141,2]
[347562909,1735919449313,-3907.52,0.00010141,2]
[347562911,1735919449323,-270.05797199,0.00010141,2]
[347562913,1735919449334,-497.39056082,0.00010141,2]
[347562915,1735919449343,-398.73009964,0.00010141,2]
[347562917,1735919449353,-500.0,0.00010141,2]
[347562919,1735919449363,-500.0,0.00010141,2]
[347562921,1735919449372,-500.0,0.00010141,2]
[347562923,1735919449384,-500.0,0.00010141,2]
[347562925,1735919449395,-500.0,0.00010141,2]
[347562927,1735919449405,-500.0,0.00010141,2]
[347562929,1735919449417,-500.0,0.00010141,2]
[347562931,1735919449427,-500.0,0.00010141,2]
[347562933,1735919449436,-500.0,0.00010141,2]
[347562935,1735919449446,-500.0,0.00010141,2]
[347562937,1735919449457,-500.0,0.00010141,2]
[347562939,1735919449467,-500.0,0.00010141,2]
[347562941,1735919449476,-500.0,0.00010141,2]
[347562943,1735919449487,-500.0,0.00010141,2]
[347562945,1735919449496,-500.0,0.00010141,2]
[347562946,1735919449506,-500.0,0.00010141,2]
[347562947,1735919449516,-634.74,0.00010141,2]
[347562948,1735919449525,-500.0,0.00010141,2]
[347562949,1735919449535,-500.0,0.00010141,2]
[347562950,1735919449545,-500.0,0.00010141,2]
[347562951,1735919449554,-623.6679591,0.00010141,2]
[347562952,1735919449563,-500.0,0.00010141,2]
[347562953,1735919449574,-500.0,0.00010141,2]
[347562954,1735919449583,-500.0,0.00010141,2]
[347562955,1735919449593,-500.0,0.00010141,2]
[347562956,1735919449602,-744.75,0.00010141,2]
[347562957,1735919449611,-500.0,0.00010141,2]
[347562958,1735919449620,-500.0,0.00010141,2]
[347562959,1735919449629,-500.0,0.00010141,2]
[347562960,1735919449639,-500.0,0.00010141,2]
[347562961,1735919449648,-500.0,0.00010141,2]
[347562962,1735919449657,-604.13,0.00010141,2]
[347562963,1735919449667,-500.0,0.00010141,2]
[347562964,1735919449676,-500.0,0.00010141,2]
[347562965,1735919449686,-506.64,0.00010141,2]
[347562966,1735919449696,-500.0,0.00010141,2]
[347562967,1735919449706,-500.0,0.00010141,2]
[347562968,1735919449716,-500.0,0.00010141,2]
[347562969,1735919449726,-500.0,0.00010141,2]
[347562970,1735919449735,-500.0,0.00010141,2]
[347562971,1735919449745,-500.0,0.00010141,2]
[347562972,1735919449754,-500.0,0.00010141,2]
[347562973,1735919449765,-500.0,0.00010141,2]
[347562974,1735919449775,-500.0,0.00010141,2]
[347562975,1735919449785,-500.0,0.00010141,2]
[347562976,1735919449795,-500.0,0.00010141,2]
[347562977,1735919449804,-811.8,0.00010141,2]
[347562978,1735919449814,-500.0,0.00010141,2]
[347562979,1735919449826,-500.0,0.00010141,2]
[347562980,1735919449835,-500.0,0.00010141,2]
[347562981,1735919449844,-500.0,0.00010141,2]
[347562982,1735919449853,-500.0,0.00010141,2]
[347562983,1735919449863,-500.0,0.00010141,2]
[347562984,1735919449873,-500.0,0.00010141,2]
[347562985,1735919449882,-809.26,0.00010141,2]
[347562986,1735919449893,-1045.95,0.00010141,2]
[347562987,1735919449902,-500.0,0.00010141,2]
[347562988,1735919449912,-500.0,0.00010141,2]
[347562989,1735919449922,-500.0,0.00010141,2]
[347562990,1735919449931,-500.0,0.00010141,2]
[347562991,1735919449940,-500.0,0.00010141,2]
[347562993,1735919449952,-1478.74,0.00010141,2]
[347562995,1735919449962,-500.0,0.00010141,2]
[347562997,1735919449972,-500.0,0.00010141,2]
[347562999,1735919449983,-626.36,0.00010141,2]
[347563002,1735919449995,-951.82,0.00010141,2]
[347563004,1735919450004,-500.0,0.00010141,2]
[347563005,1735919450014,-500.0,0.00010141,2]
[347563007,1735919450023,-500.0,0.00010141,2]
[347563010,1735919450032,-947.32,0.00010141,2]
[347563012,1735919450042,-929.15,0.00010141,2]
[347563014,1735919450052,-500.0,0.00010141,2]
[347563016,1735919450061,-521.98,0.00010141,2]
[347563017,1735919450071,-500.0,0.00010141,2]
[347563019,1735919450082,-500.0,0.00010141,2]
[347563021,1735919450092,-500.0,0.00010141,2]
[347563023,1735919450102,-500.0,0.00010141,2]
[347563025,1735919450112,-500.0,0.00010141,2]
[347563027,1735919450122,-500.0,0.00010141,2]
[347563029,1735919450131,-3875.94,0.00010141,2]
[347563031,1735919450141,-866.91,0.00010141,2]
[347563033,1735919450152,-500.0,0.00010141,2]
[347563035,1735919450162,-622.6,0.00010141,2]
[347563037,1735919450172,-1185.4,0.00010141,2]
[347563039,1735919450182,-1073.49,0.00010141,2]
[347563041,1735919450191,-500.0,0.00010141,2]
[347563043,1735919450200,-935.42,0.00010141,2]
[347563046,1735919450211,-1753.28,0.00010141,2]
[347563047,1735919450220,-500.0,0.00010141,2]
[347563050,1735919450230,-500.0,0.00010141,2]
[347563052,1735919450240,-1140.28,0.00010141,2]
[347563054,1735919450250,-500.0,0.00010141,2]
[347563056,1735919450259,-500.0,0.00010141,2]
[347563058,1735919450269,-985.48,0.00010141,2]
[347563060,1735919450279,-2049.49,0.00010141,2]
[347563061,1735919450288,-500.0,0.00010141,2]
[347563063,1735919450300,-1331.87,0.00010142,2]
[347563065,1735919450310,-500.0,0.00010142,2]
[347563068,1735919450320,-2635.42,0.00010142,2]
[347563070,1735919450332,-1927.72,0.00010142,2]
[347563072,1735919450343,-500.0,0.00010142,2]
[347563074,1735919450354,-1038.27,0.00010142,2]
[347563076,1735919450364,-938.89,0.00010142,2]
[347563078,1735919450376,-500.0,0.00010142,2]